fUSD/lending_fUSD_20240424
["ID","MTS","AMOUNT","RATE_DAILY","PERIOD"]
[323428725,1713983405655,-936.0,9.475e-05,2]
[323428726,1713983405679,-1287.26,9.481e-05,2]
[323428727,1713983405704,-151.99,9.535e-05,2]
[323428728,1713983405726,-1624.75,9.828e-05,2]
[323428729,1713983406258,-4000.0,9.828e-05,2]
[323428730,1713983406836,-1989.68,9.828e-05,2]
[323428731,1713983406859,-150.99,9.828e-05,2]
[323428732,1713983406881,-1859.33,9.828e-05,2]
[323428733,1713983407387,-642.28,9.828e-05,2]
[323428734,1713983407413,-181.29,9.831e-05,2]
[323428735,1713983407435,-935.39215876,9.943e-05,2]
[323428736,1713983407457,-2241.03784124,9.943e-05,2]
[323428737,1713983408107,-4000.0,9.463e-05,2]
[323428738,1713983408713,-4000.0,9.463e-05,2]
[323428739,1713983409107,-4000.0,9.463e-05,2]
[323428740,1713983409688,-4000.0,9.463e-05,2]
[323428741,1713983410300,-4000.0,9.463e-05,2]
[323428742,1713983411350,-2770.50761268,9.463e-05,2]
[323428743,1713983411372,-1229.49238732,9.943e-05,2]
[323428749,1713983431752,-366.10443,9.943e-05,2]
[323428750,1713983431766,-806.0244192,9.943e-05,2]
[323428768,1713983432398,-1864.89569446,9.943e-05,2]
[323428769,1713983432419,-647.38522778,9.943e-05,2]
[323428770,1713983432429,-130.55998699,0.00010031,2]
[323428771,1713983432442,-24.44001301,0.00010031,2]
[323428772,1713983432454,-151.99,0.00010032,2]
[323428773,1713983432466,-256.59315283,0.00010043,2]
[323428774,1713983432479,-200.28280363,0.00010048,2]
[323428775,1713983432489,-325.67432968,0.00010048,2]
[323428776,1713983432500,-160.0,0.00010055,2]
[323428777,1713983432509,-250.0,0.00010055,2]
[323428778,1713983432520,-206.75433877,0.00010187,2]
[323428779,1713983432530,-155.0,0.00010187,2]
[323428780,1713983432541,-158.74,0.00010258,2]
[323428781,1713983432552,-209.9931,0.00010302,2]
[323428782,1713983432561,-156.33284154,0.00010384,2]
[323428783,1713983432572,-1977.50358643,0.00010384,2]
[323428784,1713983432582,-219.66306455,0.00010384,2]
[323428785,1713983432596,-27.08932577,0.00010384,2]
[323428786,1713983432607,-183.11836741,0.00010384,2]
[323428787,1713983432617,-165.37997701,0.00010385,2]
[323428788,1713983432628,-183.38545674,0.00010385,2]
[323428789,1713983432639,-157.22657405,0.00010385,2]
[323428790,1713983432649,-156.37789765,0.00010385,2]
[323428791,1713983432660,-282.15595537,0.00010385,2]
[323428792,1713983432669,-3511.16473349,0.00010385,2]
[323428793,1713983432680,-1378.68228423,0.00010386,2]
[323428794,1713983432743,-22105.02025312,0.00010386,2]
[323428795,1713983432816,-331.5,0.00010386,2]
[323428796,1713983432829,-1359.79746265,0.00010386,2]
[323428797,1713983432838,-2999.88375729,0.00010398,2]
[323428798,1713983432849,-26630.18556114,0.00010399,2]
[323428799,1713983432861,-12403.74624525,0.00010399,2]
[323428800,1713983432870,-499.99,0.00010402,2]
[323428801,1713983432880,-487.49,0.00010463,2]
[323428802,1713983432893,-419.06,0.00010478,2]
[323428803,1713983432904,-303.13,0.00010478,2]
[323428804,1713983432914,-180.66,0.00010547,2]
[323428805,1713983432925,-936.0,0.0001066,2]
[323428806,1713983432936,-50185.72449516,0.00011118,2]
[323428807,1713983432949,-1641.7,0.00011118,2]
[323428828,1713983437883,-34234.20390484,0.00011118,2]
[323428829,1713983437895,-198.95863891,0.00011184,2]
[323428830,1713983437906,-767.48,0.00011195,2]
[323428831,1713983437915,-500.0,0.00011195,2]
[323428832,1713983437925,-887.44,0.00011195,2]
[323428833,1713983437936,-654.49,0.00011195,2]
[323428834,1713983437945,-1337.55,0.00011195,2]
[323428835,1713983437955,-621.96,0.00011195,2]
[323428836,1713983437965,-500.0,0.00011195,2]
[323428837,1713983437974,-1994.74,0.00011195,2]
[323428838,1713983437983,-1689.35,0.00011195,2]
[323428839,1713983437993,-1555.77,0.00011195,2]
[323428840,1713983438002,-896.12,0.00011195,2]
[323428841,1713983438012,-1651.69,0.00011195,2]
[323428842,1713983438021,-500.0,0.00011195,2]
[323428843,1713983438030,-1117.83,0.00011195,2]
[323428844,1713983438039,-500.0,0.00011195,2]
[323428845,1713983438049,-500.0,0.00011195,2]
[323428846,1713983438058,-1096.14,0.00011195,2]
[323428847,1713983438068,-500.0,0.00011195,2]
[323428848,1713983438077,-500.0,0.00011195,2]
[323428849,1713983438087,-1166.28,0.00011195,2]
[323428850,1713983438099,-903.4,0.00011195,2]
[323428851,1713983438110,-951.33,0.00011195,2]
[323428853,1713983438119,-1084.89,0.00011195,2]
[323428854,1713983438129,-520.47,0.00011195,2]
[323428855,1713983438139,-500.0,0.00011195,2]
[323428856,1713983438149,-4402.94,0.00011195,2]
[323428857,1713983438159,-20838.97915679,0.00011196,2]
[323428858,1713983438169,-500.0,0.00011217,2]
[323428860,1713983438179,-729.04,0.00011217,2]
[323428862,1713983438188,-500.0,0.00011217,2]
[323428864,1713983438198,-565.66,0.00011217,2]
[323428866,1713983438208,-579.85,0.00011217,2]
[323428868,1713983438218,-1003.64,0.00011217,2]
[323428870,1713983438228,-500.0,0.00011217,2]
[323428872,1713983438238,-500.0,0.00011217,2]
[323428874,1713983438248,-1274.91,0.00011217,2]
[323428876,1713983438258,-1010.15,0.00011217,2]
[323428878,1713983438268,-1044.53,0.00011217,2]
[323428880,1713983438278,-500.0,0.00011217,2]
[323428882,1713983438287,-1195.58,0.00011217,2]
[323428884,1713983438297,-1544.92,0.00011217,2]
[323428885,1713983438307,-658.61,0.00011217,2]
[323428886,1713983438317,-500.0,0.00011217,2]
[323428887,1713983438326,-500.0,0.00011217,2]
[323428888,1713983438336,-500.0,0.00011217,2]
[323428889,1713983438347,-500.0,0.00011217,2]
[323428890,1713983438357,-664.44,0.00011217,2]
[323428891,1713983438378,-500.0,0.00011217,2]
[323428892,1713983438387,-552.15,0.00011217,2]
[323428893,1713983438397,-2089.0,0.00011217,2]
[323428894,1713983438407,-2871.91,0.00011217,2]
[323428895,1713983438418,-151.0,0.00011217,2]
[323428896,1713983438428,-151.0,0.00011217,2]
[323428897,1713983438437,-1828.2,0.00011217,2]
[323428898,1713983438447,-3901.17,0.00011217,2]
[323428899,1713983438457,-500.0,0.00011217,2]
[323428900,1713983438467,-3412.03,0.00011217,2]
[323428901,1713983438478,-1526.39,0.00011217,2]
[323428902,1713983438487,-1138.19,0.00011217,2]
[323428903,1713983438498,-151.0,0.00011218,2]
[323428904,1713983438508,-7170.653167,0.00011218,2]
[323428905,1713983438517,-7170.653167,0.00011218,2]
[323428906,1713983438528,-151.0,0.00011218,2]
[323428907,1713983438538,-151.0,0.00011218,2]
[323428908,1713983438548,-74176.4493,0.00011218,2]
[323428909,1713983438558,-500.0,0.00011284,2]
[323428910,1713983438567,-500.0,0.00011284,2]
[323428911,1713983438576,-307.10783106,0.00011284,2]
[323428912,1713983438586,-500.0,0.00011284,2]
[323428913,1713983438596,-870.94,0.00011284,2]
[323428914,1713983438605,-500.0,0.00011284,2]
[323428915,1713983438614,-500.0,0.00011284,2]
[323428916,1713983438623,-558.21,0.00011284,2]
[323428917,1713983438633,-500.0,0.00011284,2]
[323428918,1713983438642,-581.05,0.00011284,2]
[323428919,1713983438653,-606.0,0.00011284,2]
[323428920,1713983438662,-500.0,0.00011284,2]
[323428921,1713983438671,-150.0,0.00011284,2]
[323428922,1713983438682,-500.0,0.00011284,2]
[323428923,1713983438692,-500.0,0.00011284,2]
[323428924,1713983438701,-500.0,0.00011284,2]
[323428925,1713983438710,-500.0,0.00011284,2]
[323428926,1713983438720,-514.67,0.00011284,2]
[323428927,1713983438729,-500.0,0.00011284,2]
[323428928,1713983438738,-500.0,0.00011284,2]
[323428929,1713983438747,-500.0,0.00011284,2]
[323428930,1713983438756,-500.0,0.00011284,2]
[323428931,1713983438765,-500.0,0.00011284,2]
[323428932,1713983438775,-883.75,0.00011284,2]
[323428933,1713983438784,-500.0,0.00011284,2]
[323428934,1713983438795,-500.0,0.00011284,2]
[323428935,1713983438804,-500.0,0.00011284,2]
[323428936,1713983438813,-500.0,0.00011284,2]
[323428937,1713983438822,-523.98,0.00011284,2]
[323428938,1713983438833,-500.0,0.00011284,2]
[323428939,1713983438841,-564.02958922,0.00011284,2]
[323428940,1713983438852,-647.48,0.00011284,2]
[323428941,1713983438862,-2730.7,0.00011284,2]
[323428942,1713983438871,-3861.96,0.00011284,2]
[323428943,1713983438880,-1771.47,0.00011284,2]
[323428944,1713983438890,-678.41,0.00011284,2]
[323428945,1713983438899,-500.0,0.00011284,2]
[323428946,1713983438908,-500.0,0.00011284,2]
[323428947,1713983438919,-500.0,0.00011284,2]
[323428948,1713983438929,-1833.22,0.00011284,2]
[323428949,1713983438939,-2804.24,0.00011284,2]
[323428950,1713983438947,-584.52,0.00011284,2]
[323428951,1713983438957,-5025.76,0.00011284,2]
[323428952,1713983438966,-500.0,0.00011284,2]
[323428953,1713983438975,-1542.16,0.00011284,2]
[323428954,1713983438984,-988.75,0.00011284,2]
[323428955,1713983438995,-500.0,0.00011284,2]
[323428956,1713983439005,-1144.63,0.00011284,2]
[323428957,1713983439014,-7170.653167,0.00011284,2]
[323428958,1713983439023,-500.0,0.00011284,2]
[323428959,1713983439033,-7170.653167,0.00011284,2]
[323428960,1713983439042,-500.0,0.00011284,2]
[323428961,1713983439051,-500.0,0.00011284,2]
[323428962,1713983439061,-897.43,0.00011284,2]
[323428963,1713983439070,-847.39,0.00011284,2]
[323428964,1713983439079,-665.52,0.00011284,2]
[323428965,1713983439089,-500.0,0.00011284,2]
[323428966,1713983439100,-1104.42,0.00011284,2]
[323428967,1713983439110,-500.0,0.00011284,2]
[323428968,1713983439119,-1289.74,0.00011284,2]
[323428969,1713983439129,-1013.12,0.00011284,2]
[323428970,1713983439139,-500.0,0.00011284,2]
[323428971,1713983439148,-500.0,0.00011284,2]
[323428972,1713983439158,-151.0,0.00011284,2]
[323428973,1713983439168,-2995.34,0.00011284,2]
[323428974,1713983439178,-188.093282,0.00011284,2]
[323428975,1713983439189,-500.0,0.00011284,2]
[323428976,1713983439199,-1012.37,0.00011284,2]
[323428977,1713983439209,-500.0,0.00011284,2]
[323428978,1713983439220,-500.0,0.00011284,2]
[323428979,1713983439231,-500.0,0.00011284,2]
[323428980,1713983439241,-2897.71,0.00011284,2]
[323428981,1713983439251,-500.0,0.00011284,2]
[323428982,1713983439260,-500.0,0.00011284,2]
[323428983,1713983439269,-1684.78,0.00011284,2]
[323428984,1713983439279,-1040.06,0.00011284,2]
[323428985,1713983439288,-2883.9731,0.00011284,2]
[323428986,1713983439298,-8968.0208,0.00011285,2]
[323428987,1713983439307,-46684.9978,0.00011285,2]
[323428988,1713983439317,-616.3485,0.00011285,2]
[323428989,1713983439326,-151.0,0.00011285,2]
[323428990,1713983439335,-5122.80820204,0.00011285,2]
[323428997,1713983439976,-2047.84496496,0.00011285,2]
[323428998,1713983439986,-729.63974251,0.00011285,2]
[323428999,1713983439997,-857.75,0.00011285,2]
[323429000,1713983440021,-1900.55554851,0.00011285,2]
[323429001,1713983440033,-3682.70787598,0.00011285,2]
[323429002,1713983440042,-151.0,0.00011285,2]
[323429003,1713983440051,-151.0,0.00011285,2]
[323429004,1713983440061,-101.0589337,0.00011374,2]
[323429005,1713983440073,-51.81041865,0.00011374,2]
[323429006,1713983440082,-4104.56315598,0.00011383,2]
[323429007,1713983440091,-387.15500271,0.00011383,2]
[323429008,1713983440105,-112.84499729,0.00011383,2]
[323429009,1713983440115,-1447.41,0.00011383,2]
[323429010,1713983440125,-1540.02,0.00011383,2]
[323429011,1713983440134,-3746.07,0.00011383,2]
[323429012,1713983440143,-500.0,0.00011384,2]
[323429013,1713983440153,-500.0,0.00011384,2]
[323429014,1713983440162,-500.0,0.00011384,2]
[323429015,1713983440172,-7.17549297,0.00011384,2]
[323429016,1713983440183,-492.82450703,0.00011384,2]
[323429017,1713983440193,-500.0,0.00011384,2]
[323429018,1713983440201,-151.53544116,0.00011384,2]
[323429019,1713983440213,-348.46455884,0.00011384,2]
[323429020,1713983440223,-500.0,0.00011384,2]
[323429021,1713983440232,-500.0,0.00011384,2]
[323429022,1713983440241,-500.0,0.00011384,2]
[323429023,1713983440251,-528.62,0.00011384,2]
[323429024,1713983440260,-500.0,0.00011384,2]
[323429025,1713983440269,-500.0,0.00011384,2]
[323429026,1713983440278,-500.0,0.00011384,2]
[323429027,1713983440287,-500.0,0.00011384,2]
[323429028,1713983440296,-500.0,0.00011384,2]
[323429029,1713983440305,-500.0,0.00011384,2]
[323429030,1713983440315,-500.0,0.00011384,2]
[323429031,1713983440324,-201.62734,0.00011384,2]
[323429032,1713983440333,-561.52,0.00011384,2]
[323429033,1713983440342,-500.0,0.00011384,2]
[323429034,1713983440356,-500.0,0.00011384,2]
[323429035,1713983440365,-966.44,0.00011384,2]
[323429036,1713983440374,-751.42,0.00011384,2]
[323429037,1713983440383,-500.0,0.00011384,2]
[323429038,1713983440393,-500.0,0.00011384,2]
[323429039,1713983440402,-395.78,0.00011384,2]
[323429040,1713983440411,-940.26,0.00011384,2]
[323429041,1713983440420,-653.56,0.00011384,2]
[323429042,1713983440430,-500.0,0.00011384,2]
[323429043,1713983440439,-370.34453708,0.00011384,2]
[323429044,1713983440448,-500.0,0.00011384,2]
[323429045,1713983440457,-500.0,0.00011384,2]
[323429046,1713983440467,-500.0,0.00011384,2]
[323429047,1713983440477,-295.46349358,0.00011384,2]
[323429048,1713983440511,-204.53650642,0.00011384,2]
[323429049,1713983440521,-500.0,0.00011384,2]
[323429050,1713983440530,-514.35,0.00011384,2]
[323429051,1713983440540,-500.0,0.00011384,2]
[323429052,1713983440549,-1370.97,0.00011384,2]
[323429053,1713983440558,-500.0,0.00011384,2]
[323429054,1713983440568,-1253.76220279,0.00011384,2]
[323429055,1713983441047,-250.0,0.00010471,2]
[323429056,1713983441056,-239.59093316,0.00011117,2]
[323429057,1713983441068,-723.42,0.00011117,2]
[323429058,1713983441108,-4067.03843892,0.00011117,2]
[323429059,1713983441121,-293.05366034,0.00011117,2]
[323429060,1713983441133,-1782.92546989,0.00011117,2]
[323429061,1713983441145,-2796.98180998,0.00011117,2]
[323429062,1713983441160,-324.1662772,0.00011117,2]
[323429072,1713983443178,-743.0334,0.0001047,2]
[323429092,1713983445781,-42.66707262,0.0001047,2]
[323429094,1713983445794,-315.57143498,0.00011117,2]
[323429100,1713983445891,-532.888,0.00011117,2]
[323429101,1713983445904,-2001.06535578,0.00011117,2]
[323429102,1713983445920,-388.474,0.00011117,2]
[323429103,1713983445967,-579.85417676,0.00011117,2]
[323429104,1713983445981,-5502.16227859,0.00011117,2]
[323429105,1713983446064,-3223.31577708,0.00011117,2]
[323429106,1713983446076,-431.87224599,0.00011195,2]
[323429107,1713983446088,-411.02091079,0.00011284,2]
[323429111,1713983541601,1500.0,9.322e-05,2]
[323429112,1713983551203,150.0,9.253e-05,2]
[323429113,1713983551236,150.0,8.435e-05,2]
[323429114,1713983551537,150.0,9.759e-05,2]
[323429115,1713983551631,150.0,9.077e-05,2]
[323429116,1713983551820,150.0,7.688e-05,2]
[323429117,1713983551905,150.0,9.917e-05,2]
[323429118,1713983551967,150.0,9.061e-05,2]
[323429119,1713983552122,150.0,7.658e-05,2]
[323429120,1713983552154,150.0,8.577e-05,2]
[323429121,1713983552293,150.0,7.718e-05,2]
[323429122,1713983552329,150.0,9.891e-05,2]
[323429123,1713983552419,150.0,8.003e-05,2]
[323429125,1713983602563,463.12,8.219e-05,2]
[323429126,1713983605777,236.88,9.857e-05,2]
[323429127,1713983611172,150.0,7.98e-05,2]
[323429132,1713983781786,1500.0,8.179e-05,2]
[323429148,1713984156172,453.3,8.219e-05,2]
[323429149,1713984265863,2399.99999861,0.00025975,90]
[323429150,1713984273477,3000.0,0.00025975,120]
[323429151,1713984409157,-641.61516885,9.224e-05,2]
[323429152,1713984409177,-270.69323319,9.225e-05,2]
[323429153,1713984409198,-1482.17616553,9.277e-05,2]
[323429154,1713984409221,-447.07253793,9.286e-05,2]
[323429155,1713984571870,150.0,8.454e-05,2]
[323429156,1713984572161,150.0,8.393e-05,2]
[323429164,1713984632707,-150.0,8.566e-05,2]
[323429165,1713984632717,-150.0,8.708e-05,2]
[323429166,1713984632726,-150.0,8.778e-05,2]
[323429167,1713984632735,-150.0,8.814e-05,2]
[323429168,1713984632745,-150.0,8.865e-05,2]
[323429169,1713984632753,-150.0,8.928e-05,2]
[323429170,1713984632762,-150.0,8.944e-05,2]
[323429171,1713984632771,-150.0,9.133e-05,2]
[323429172,1713984632780,-150.0,9.141e-05,2]
[323429173,1713984632789,-134.9835,9.212e-05,2]
[323429174,1713984632800,-23.9965,9.212e-05,2]
[323429175,1713984632809,-150.0,9.259e-05,2]
[323429176,1713984632818,-273.1478051,9.285e-05,2]
[323429177,1713984632827,-150.0,9.285e-05,2]
[323429178,1713984632836,-556.51638506,9.286e-05,2]
[323429179,1713984632845,-1776.10185762,9.286e-05,2]
[323429180,1713984632938,-308.60746084,9.286e-05,2]
[323429181,1713984632949,-2733.86105725,9.286e-05,2]
[323429182,1713984632967,-3733.8,9.286e-05,2]
[323429183,1713984632978,-14218.13723697,9.286e-05,2]
[323429184,1713984632987,-23900.0,9.287e-05,2]
[323429185,1713984632996,-2866.53,9.376e-05,2]
[323429186,1713984633005,-250.0,9.406e-05,2]
[323429187,1713984633014,-1872.22,9.43e-05,2]
[323429188,1713984633022,-160.47,9.489e-05,2]
[323429189,1713984633032,-150.0,9.519e-05,2]
[323429190,1713984633040,-151.87,9.582e-05,2]
[323429191,1713984633049,-151.87,9.585e-05,2]
[323429192,1713984633058,-151.87,9.588e-05,2]
[323429193,1713984633066,-151.87,9.59e-05,2]
[323429194,1713984633075,-151.87,9.593e-05,2]
[323429195,1713984633084,-151.87,9.596e-05,2]
[323429196,1713984633092,-151.87,9.598e-05,2]
[323429197,1713984633101,-151.87,9.601e-05,2]
[323429198,1713984633110,-151.87,9.603e-05,2]
[323429199,1713984633121,-41.94657668,9.606e-05,2]
[323429227,1713984638019,-109.92342332,9.606e-05,2]
[323429228,1713984638029,-151.87,9.609e-05,2]
[323429229,1713984638038,-151.87,9.611e-05,2]
[323429230,1713984638047,-151.87,9.614e-05,2]
[323429231,1713984638056,-151.87,9.617e-05,2]
[323429232,1713984638065,-5.12432287,9.619e-05,2]
[323429233,1713984638076,-146.74567713,9.619e-05,2]
[323429234,1713984638085,-151.87,9.622e-05,2]
[323429235,1713984638095,-151.87,9.625e-05,2]
[323429236,1713984638103,-162.43,9.627e-05,2]
[323429237,1713984638113,-151.87,9.627e-05,2]
[323429238,1713984638125,-151.87,9.63e-05,2]
[323429239,1713984638134,-1000.0,9.643e-05,2]
[323429240,1713984638143,-150.0,9.897e-05,2]
[323429241,1713984638153,-150.0,9.898e-05,2]
[323429242,1713984638162,-150.0,9.935e-05,2]
[323429243,1713984638171,-160.47,9.984e-05,2]
[323429244,1713984638180,-102.92730153,0.0001,2]
[323429245,1713984638244,-52.07269847,0.0001,2]
[323429246,1713984638254,-5016.04080332,0.0001,2]
[323429247,1713984638264,-150.0,0.00010076,2]
[323429248,1713984638274,-150.0,0.00010084,2]
[323429249,1713984638285,-150.0,0.00010093,2]
[323429250,1713984638294,-181.58,0.00010136,2]
[323429251,1713984638303,-150.0,0.00010234,2]
[323429252,1713984638315,-1500.0,0.00010276,2]
[323429253,1713984638325,-150.0,0.00010301,2]
[323429254,1713984638336,-150.0,0.00010424,2]
[323429255,1713984638346,-453.3,0.00010445,2]
[323429256,1713984638356,-150.0,0.00010488,2]
[323429258,1713984638366,-1500.0,0.0001051,2]
[323429260,1713984638376,-150.0,0.00010511,2]
[323429262,1713984638385,-150.0,0.00010525,2]
[323429264,1713984638394,-150.0,0.0001056,2]
[323429266,1713984638403,-150.0,0.00010575,2]
[323429268,1713984638413,-150.0,0.00010587,2]
[323429270,1713984638422,-150.0,0.00010593,2]
[323429272,1713984638431,-155.64,0.00010604,2]
[323429273,1713984638441,-155.64,0.0001061,2]
[323429274,1713984638450,-155.64,0.00010615,2]
[323429276,1713984638459,-150.0,0.00010617,2]
[323429278,1713984638468,-155.64,0.0001062,2]
[323429280,1713984638477,-150.0,0.00010625,2]
[323429282,1713984638487,-155.64,0.00010626,2]
[323429283,1713984638497,-155.64,0.00010631,2]
[323429284,1713984638507,-155.64,0.00010636,2]
[323429285,1713984638517,-150.0,0.0001064,2]
[323429286,1713984638526,-155.64,0.00010642,2]
[323429287,1713984638536,-155.64,0.00010647,2]
[323429288,1713984638545,-150.0,0.00010652,2]
[323429289,1713984638554,-155.64,0.00010652,2]
[323429290,1713984638564,-155.64,0.00010658,2]
[323429291,1713984638573,-150.0,0.00010659,2]
[323429292,1713984638583,-150.0,0.00010662,2]
[323429293,1713984638593,-150.0,0.00010675,2]
[323429294,1713984638602,-150.0,0.0001068,2]
[323429295,1713984638612,-150.0,0.00010808,2]
[323429296,1713984638624,-150.0,0.00010839,2]
[323429297,1713984638633,-150.0,0.00010848,2]
[323429298,1713984638642,-1000.0,0.00010848,2]
[323429299,1713984638650,-150.0,0.00010886,2]
[323429300,1713984638659,-150.0,0.00010914,2]
[323429301,1713984638668,-2497.9223,0.00010918,2]
[323429302,1713984638679,-5303.3505,0.00010918,2]
[323429303,1713984638688,-150.0,0.00010959,2]
[323429304,1713984638697,-150.0,0.00010959,2]
[323429305,1713984638706,-150.0,0.00010965,2]
[323429306,1713984638715,-150.0,0.00010965,2]
[323429307,1713984638725,-150.0,0.00010969,2]
[323429308,1713984638735,-1500.0,0.00010977,2]
[323429309,1713984638744,-150.0,0.00010982,2]
[323429310,1713984638754,-150.0,0.00010983,2]
[323429311,1713984638763,-150.0,0.00010996,2]
[323429312,1713984638774,-150.0,0.00011016,2]
[323429313,1713984638784,-92853.8208,0.00011018,2]
[323429314,1713984638793,-39050.9051,0.00011018,2]
[323429315,1713984638803,-150.0,0.0001103,2]
[323429316,1713984638812,-150.0,0.00011038,2]
[323429317,1713984638822,-150.0,0.00011093,2]
[323429318,1713984638831,-777.9859,0.00011094,2]
[323429319,1713984638841,-150.0,0.00011124,2]
[323429320,1713984638850,-150.0,0.00011164,2]
[323429321,1713984638860,-500.0,0.00011191,2]
[323429322,1713984638870,-582.94,0.00011191,2]
[323429323,1713984638879,-850.46,0.00011191,2]
[323429324,1713984638889,-1281.82,0.00011191,2]
[323429325,1713984638899,-627.22,0.00011191,2]
[323429326,1713984638908,-596.05,0.00011191,2]
[323429327,1713984638918,-500.0,0.00011191,2]
[323429328,1713984638928,-1618.96,0.00011191,2]
[323429329,1713984638937,-1911.62,0.00011191,2]
[323429330,1713984638946,-858.78,0.00011191,2]
[323429331,1713984638955,-1490.94,0.00011191,2]
[323429332,1713984638964,-1582.87,0.00011191,2]
[323429333,1713984638974,-500.0,0.00011191,2]
[323429334,1713984638983,-1071.25,0.00011191,2]
[323429335,1713984638992,-500.0,0.00011191,2]
[323429336,1713984639001,-500.0,0.00011191,2]
[323429337,1713984639010,-500.0,0.00011191,2]
[323429338,1713984639019,-1050.46,0.00011191,2]
[323429339,1713984639028,-500.0,0.00011191,2]
[323429340,1713984639038,-2371.44,0.00011191,2]
[323429341,1713984639047,-1117.68,0.00011191,2]
[323429342,1713984639056,-911.7,0.00011191,2]
[323429343,1713984639066,-1039.69,0.00011192,2]
[323429344,1713984639076,-500.0,0.00011192,2]
[323429345,1713984639086,-715.76,0.00011192,2]
[323429346,1713984639096,-4219.49,0.00011192,2]
[323429347,1713984639107,-500.0,0.00011192,2]
[323429348,1713984639121,-500.0,0.00011192,2]
[323429349,1713984639133,-500.0,0.00011192,2]
[323429350,1713984639143,-500.0,0.00011192,2]
[323429351,1713984639153,-500.0,0.00011192,2]
[323429352,1713984639163,-500.0,0.00011192,2]
[323429353,1713984639173,-500.0,0.00011192,2]
[323429354,1713984639183,-542.09,0.00011192,2]
[323429355,1713984639192,-1221.79,0.00011192,2]
[323429356,1713984639201,-509.38,0.00011192,2]
[323429357,1713984639211,-500.0,0.00011192,2]
[323429358,1713984639221,-1001.01,0.00011192,2]
[323429359,1713984639230,-961.82,0.00011192,2]
[323429360,1713984639241,-1480.55,0.00011192,2]
[323429361,1713984639251,-968.06,0.00011192,2]
[323429362,1713984639261,-500.0,0.00011192,2]
[323429363,1713984639271,-500.0,0.00011192,2]
[323429364,1713984639282,-1145.76,0.00011192,2]
[323429365,1713984639292,-636.75,0.00011192,2]
[323429366,1713984639301,-631.16,0.00011192,2]
[323429367,1713984639312,-500.0,0.00011192,2]
[323429368,1713984639321,-500.0,0.00011192,2]
[323429369,1713984639330,-500.0,0.00011192,2]
[323429370,1713984639340,-500.0,0.00011192,2]
[323429371,1713984639350,-2001.95,0.00011192,2]
[323429372,1713984639360,-500.0,0.00011192,2]
[323429373,1713984639372,-500.0,0.00011192,2]
[323429374,1713984639381,-500.0,0.00011192,2]
[323429375,1713984639393,-500.0,0.00011192,2]
[323429376,1713984639402,-529.15,0.00011192,2]
[323429377,1713984639411,-2752.25,0.00011192,2]
[323429378,1713984639420,-1462.79,0.00011192,2]
[323429379,1713984639430,-1752.02,0.00011192,2]
[323429380,1713984639440,-3738.63,0.00011192,2]
[323429381,1713984639451,-500.0,0.00011193,2]
[323429382,1713984639461,-500.0,0.00011193,2]
[323429383,1713984639470,-500.0,0.00011193,2]
[323429384,1713984639479,-500.0,0.00011193,2]
[323429385,1713984639489,-500.0,0.00011193,2]
[323429386,1713984639498,-500.0,0.00011193,2]
[323429387,1713984639507,-500.0,0.00011193,2]
[323429388,1713984639516,-500.0,0.00011193,2]
[323429389,1713984639526,-500.0,0.00011193,2]